bitfinex/quotes_SOLUSD_20241115
["timestamp","ask_amount","ask_price","bid_price","bid_amount"]
[1731709504066,0.09367462,218.55,218.46,15.9746]
[1731709504761,14.4137,218.54,218.46,15.9746]
[1731709505065,0.12549,218.53,218.46,15.9746]
[1731709505773,4.1186,218.52,218.46,15.9746]
[1731709506280,4.1186,218.52,218.47,23.776884]
[1731709507666,33.11351624,218.62,218.47,23.776884]
[1731709507966,0.34465462,218.6,218.47,23.776884]
[1731709508764,0.34465462,218.58,218.47,23.776884]
[1731709509453,0.12549,218.58,218.47,23.776884]
[1731709509762,0.12549,218.58,218.49,23.776884]
[1731709510674,4.1176,218.57,218.49,23.776884]
[1731709511354,4.1176,218.57,218.51,23.776884]
[1731709512653,10.2914,218.63,218.51,23.776884]
[1731709513172,10.2914,218.63,218.51,28.353284]
[1731709513547,10.2914,218.63,218.54,23.776884]
[1731709514655,0.12549,218.64,218.54,23.776884]
[1731709514959,0.21916462,218.65,218.54,23.776884]
[1731709515465,0.12549,218.66,218.54,23.776884]
[1731709515466,0.25098,218.66,218.54,23.776884]
[1731709516671,0.12549,218.64,218.54,23.776884]
[1731709518169,4.1165,218.63,218.54,23.776884]
[1731709521469,10.2904,218.65,218.56,23.776884]
[1731709521854,14.4046,218.68,218.58,23.776884]
[1731709522664,4.1156,218.68,218.61,16.0906]
[1731709522871,4.1156,218.68,218.62,23.776884]
[1731709523386,0.4295309,218.69,218.64,23.776884]
[1731709525480,0.4295309,218.69,218.65,20.0]
[1731709525658,0.4295309,218.69,218.66,23.776884]
[1731709526072,0.4295309,218.69,218.68,23.776884]
[1731709526567,4.114,218.76,218.68,23.776884]
[1731709527680,10.2829,218.81,218.68,23.776884]
[1731709527878,0.34465462,218.8,218.68,23.776884]
[1731709528859,0.12549,218.78,218.68,23.776884]
[1731709529863,4.1139,218.77,218.7,23.776884]
[1731709532175,0.12549,218.8,218.7,23.776884]
[1731709532881,10.2829,218.81,218.7,23.776884]
[1731709533486,10.2829,218.81,218.72,23.776884]
[1731709533854,4.1125,218.84,218.72,23.776884]
[1731709534073,4.1114,218.9,218.75,43.776884]
[1731709534278,8.82999726,218.78,218.75,43.776884]
[1731709536379,8.82999726,218.78,218.75,23.776884]
[1731709536583,8.82999726,218.76,218.75,23.776884]
[1731709537085,8.82999726,218.77,218.75,23.776884]
[1731709540159,4.1122,218.86,218.75,23.776884]
[1731709540383,8.82999726,218.78,218.75,28.348184]
[1731709541168,4.1122,218.86,218.75,28.348184]
[1731709541373,8.82999726,218.79,218.75,28.348184]
[1731709542582,8.82999726,218.78,218.75,28.348184]
[1731709543586,0.12549,218.86,218.75,28.348184]
[1731709543773,8.82999726,218.78,218.75,28.348184]
[1731709545074,8.82999726,218.76,218.75,23.776884]
[1731709549196,2.53343255,218.76,218.75,23.776884]
[1731709553109,2.53343255,218.76,218.74,15.3113]
[1731709553402,8.82999726,218.75,218.74,15.3113]
[1731709553595,8.82999726,218.75,218.74,39.088184]
[1731709555793,14.3917,218.88,218.75,28.348284]
[1731709555991,8.82999726,218.76,218.75,23.776884]
[1731709556588,8.82999726,218.76,218.72,24.572]
[1731709557309,8.82999726,218.77,218.72,36.0021]
[1731709557600,8.82999726,218.77,218.75,23.776884]
[1731709561304,0.12549,218.85,218.75,23.776884]
[1731709561614,8.82999726,218.78,218.75,23.776884]
[1731709563306,8.82999726,218.78,218.76,15.0714]
[1731709563504,0.12549,218.85,218.76,15.0714]
[1731709563687,8.82999726,218.78,218.76,15.0714]
[1731709565283,12.94369726,218.78,218.76,15.0714]
[1731709566696,8.82999726,218.77,218.76,38.848284]
[1731709567783,4.1133,218.8,218.76,38.848284]
[1731709567982,8.82999726,218.78,218.76,38.848284]
[1731709568412,4.1122,218.86,218.77,23.776884]
[1731709568610,8.82999726,218.82,218.77,23.776884]
[1731709568817,8.82999726,218.8,218.77,23.776884]
[1731709570701,45.59878904,218.9,218.78,6.65817462]
[1731709570910,8.82999726,218.82,218.79,43.776884]
[1731709571206,8.82999726,218.81,218.79,23.776884]
[1731709571714,14.3907,218.89,218.78,6.5645]
[1731709571715,8.82999726,218.8,218.78,6.5645]
[1731709572218,8.82999726,218.81,218.79,23.776884]
[1731709573591,4.1131,218.82,218.79,23.776884]
[1731709573791,12.94309726,218.82,218.79,23.776884]
[1731709573994,8.82999726,218.81,218.79,23.776884]
[1731709574612,4.1131,218.82,218.78,6.5645]
[1731709574613,8.82999726,218.8,218.78,6.5645]
[1731709574821,8.82999726,218.81,218.78,6.5645]
[1731709575003,12.94309726,218.81,218.78,6.5645]
[1731709575745,8.82999726,218.82,218.78,6.5645]
[1731709575929,12.94289726,218.82,218.78,6.5645]
[1731709576695,4.1129,218.82,218.79,23.776884]
[1731709576911,12.94289726,218.82,218.79,23.776884]
[1731709577118,10.2791,218.89,218.79,23.776884]
[1731709577307,8.82999726,218.84,218.79,23.776884]
[1731709577915,8.82999726,218.84,218.79,28.347384]
[1731709580006,8.82999726,218.84,218.79,23.776884]
[1731709580202,12.94259726,218.84,218.79,23.776884]
[1731709582027,8.82999726,218.82,218.79,23.776884]
[1731709582331,8.82999726,218.83,218.79,23.776884]
[1731709583516,12.94289726,218.83,218.79,23.776884]
[1731709583717,12.94289726,218.83,218.78,6.5645]
[1731709585123,12.94289726,218.83,218.76,15.0714]
[1731709585124,12.94289726,218.83,218.77,23.776884]
[1731709585639,8.82999726,218.81,218.77,23.776884]
[1731709586231,8.82999726,218.79,218.76,15.0714]
[1731709587134,12.94349726,218.79,218.76,15.0714]
[1731709588329,4.1135,218.79,218.76,15.0714]
[1731709589234,8.82999726,218.77,218.76,15.0714]
[1731709589729,12.94349726,218.79,218.76,15.0714]
[1731709591033,8.82999726,218.79,218.76,15.0714]
[1731709591810,12.94349726,218.79,218.76,15.0714]
[1731709601238,0.12549,218.76,218.66,16.2193]
[1731709601544,8.82999726,218.72,218.66,16.2193]
[1731709601913,8.82999726,218.74,218.66,25.04929726]
[1731709602415,4.1146,218.73,218.66,25.04929726]
[1731709602735,4.1139,218.77,218.68,8.82999726]
[1731709602937,8.82999726,218.76,218.68,8.82999726]
[1731709603519,8.82999726,218.76,218.69,23.776884]
[1731709604239,4.1142,218.75,218.69,23.776884]
[1731709605033,4.1142,218.75,218.68,13.40279726]
[1731709606439,8.82999726,218.74,218.67,20.0]
[1731709607010,8.82999726,218.72,218.63,23.776884]
[1731709607325,8.82999726,218.72,218.63,8.82999726]
[1731709608540,4.115,218.71,218.63,8.82999726]
[1731709608738,4.115,218.71,218.63,4.5738]
[1731709608918,4.115,218.71,218.63,13.40379726]
[1731709610420,4.115,218.71,218.64,23.776884]
[1731709610627,4.115,218.71,218.65,8.82999726]
[1731709612736,8.82999726,218.73,218.65,8.82999726]
[1731709613732,4.1148,218.72,218.64,23.776884]
[1731709613947,4.1148,218.72,218.65,8.82999726]
[1731709614247,12.94479726,218.72,218.64,23.776884]
[1731709614422,12.94479726,218.72,218.64,32.60688126]
[1731709614831,10.2857,218.75,218.64,32.60688126]
[1731709615025,10.2857,218.75,218.64,38.94778126]
[1731709615248,10.2857,218.75,218.65,8.82999726]
[1731709615430,8.82999726,218.72,218.65,8.82999726]
[1731709615633,8.82999726,218.72,218.64,34.691484]
[1731709615634,8.82999726,218.73,218.66,8.82999726]
[1731709615835,10.2857,218.75,218.65,8.82999726]
[1731709615836,8.82999726,218.72,218.65,8.82999726]
[1731709616232,4.1137,218.78,218.66,8.82999726]
[1731709616440,8.82999726,218.74,218.66,8.82999726]
[1731709616748,8.82999726,218.75,218.67,28.82999726]
[1731709616951,4.1144,218.74,218.67,28.82999726]
[1731709618044,4.1144,218.74,218.66,4.5732]
[1731709618354,4.1144,218.74,218.67,8.82999726]
[1731709618555,4.1144,218.74,218.67,13.40299726]
[1731709619450,10.2839,218.79,218.67,13.40299726]
[1731709619451,4.36408,218.81,218.69,24.21149726]
[1731709619639,8.82999726,218.77,218.69,24.21149726]
[1731709621836,4.114,218.76,218.69,24.21149726]
[1731709622044,4.114,218.76,218.69,28.78409726]
[1731709623030,0.25098,218.81,218.69,28.78409726]
[1731709623234,8.82999726,218.76,218.69,28.78409726]
[1731709624338,4.1142,218.75,218.69,28.78409726]
[1731709624652,4.1142,218.75,218.69,19.9541]
[1731709626751,4.1133,218.8,218.69,19.9541]
[1731709626926,8.82999726,218.76,218.69,19.9541]
[1731709628730,4.1142,218.75,218.69,19.9541]
[1731709629633,8.82999726,218.74,218.69,15.3815]
[1731709637253,8.82999726,218.74,218.65,8.82999726]
[1731709637452,35.31998904,218.79,218.63,15.787]
[1731709637453,8.82999726,218.72,218.63,15.787]
[1731709637753,8.82999726,218.7,218.63,15.787]
[1731709638735,0.25098,218.72,218.63,15.787]
[1731709638942,8.82999726,218.71,218.63,24.61699726]
[1731709639550,4.7748,218.82,218.67,8.82999726]
[1731709639855,8.82999726,218.75,218.66,8.82999726]
[1731709640229,8.82999726,218.73,218.64,6.2222]
[1731709640447,8.82999726,218.73,218.65,8.82999726]
[1731709642159,23.902374,218.74,218.65,8.82999726]
[1731709644750,23.902374,218.74,218.64,6.2222]
[1731709644935,23.902374,218.74,218.64,15.05219726]
[1731709647143,23.902374,218.74,218.64,6.2222]
[1731709647350,23.902374,218.74,218.64,15.05219726]
[1731709649063,32.73237126,218.74,218.64,15.05219726]
[1731709651268,8.82999726,218.72,218.63,15.787]
[1731709651449,8.82999726,218.67,218.63,15.787]
[1731709653365,15.89197612,218.67,218.63,15.787]
[1731709654652,7.06197886,218.67,218.63,15.787]
[1731709656053,7.06197886,218.68,218.63,15.787]
[1731709656573,7.06197886,218.67,218.63,15.787]
[1731709656948,15.89197612,218.67,218.63,15.787]
[1731709659249,8.82999726,218.67,218.63,15.787]
[1731709659661,7.06197886,218.68,218.63,15.787]
[1731709660976,11.17767886,218.68,218.63,15.787]
[1731709661671,4.1157,218.68,218.63,15.787]
[1731709661975,11.17767886,218.68,218.63,15.787]
[1731709662161,20.00767612,218.68,218.63,15.787]
[1731709662572,12.94569726,218.68,218.63,15.787]
[1731709662961,20.00767612,218.68,218.63,15.787]
[1731709663558,11.17767886,218.68,218.63,15.787]
[1731709663959,4.1157,218.68,218.63,15.787]
[1731709665081,11.17767886,218.68,218.63,15.787]
[1731709665958,4.1157,218.68,218.63,15.787]
[1731709666560,12.94579726,218.67,218.63,15.787]
[1731709669373,15.89197612,218.69,218.63,15.787]
[1731709678065,8.82999726,218.67,218.63,15.787]
[1731709678457,7.06197886,218.69,218.63,15.787]
[1731709678675,7.06197886,218.73,218.65,15.11529726]
[1731709678873,7.06197886,218.74,218.65,15.11529726]
[1731709679481,15.89197612,218.75,218.65,15.11529726]
[1731709679869,7.06197886,218.74,218.65,15.11529726]
[1731709680086,8.82999726,218.73,218.65,6.2853]
[1731709680378,15.89197612,218.73,218.65,6.2853]
[1731709680563,7.06197886,218.73,218.65,15.11529726]
[1731709681579,7.06197886,218.72,218.65,15.11529726]
[1731709683379,7.06197886,218.73,218.65,15.11529726]
[1731709683581,7.06197886,218.72,218.65,15.11529726]
[1731709684479,15.89197612,218.72,218.65,6.2853]
[1731709685684,15.89197612,218.72,218.63,15.787]
[1731709685685,15.89197612,218.68,218.63,15.787]
[1731709686069,7.06197886,218.67,218.63,15.787]
[1731709686569,7.06197886,218.66,218.63,15.787]
[1731709687082,15.89197612,218.66,218.63,15.787]
[1731709687475,7.06197886,218.65,218.63,15.787]
[1731709690594,8.82999726,218.64,218.59,6.3129]
[1731709690884,8.82999726,218.6,218.58,15.983]
[1731709691085,8.82999726,218.59,218.58,15.983]
[1731709691984,8.82999726,218.6,218.58,15.983]
[1731709692489,7.06197886,218.61,218.58,15.983]
[1731709692490,8.82999726,218.59,218.58,15.983]
[1731709693287,8.82999726,218.6,218.58,15.983]
[1731709694393,12.94709726,218.6,218.58,15.983]
[1731709694573,4.1171,218.6,218.58,15.983]
[1731709695370,8.82999726,218.61,218.58,15.983]
[1731709695575,4.1168,218.62,218.58,15.983]
[1731709696176,12.94679726,218.62,218.58,15.983]
[1731709698984,7.06197886,218.64,218.58,20.5579]
[1731709699291,20.00827612,218.65,218.58,29.38789726]
[1731709699987,8.82999726,218.63,218.58,15.983]
[1731709700186,20.00827612,218.65,218.58,15.983]
[1731709701773,7.06197886,218.65,218.63,8.82999726]
[1731709702075,7.06197886,218.72,218.65,20.0]
[1731709702280,7.06197886,218.74,218.67,8.82999726]
[1731709702470,11.17627886,218.75,218.67,8.82999726]
[1731709702867,4.1143,218.75,218.67,8.82999726]
[1731709703479,8.82999726,218.74,218.65,36.0067]
[1731709704697,12.94459726,218.74,218.66,8.82999726]
[1731709705689,12.94459726,218.74,218.66,13.40319726]
[1731709705984,20.00597612,218.77,218.68,8.82999726]
[1731709707177,8.82999726,218.75,218.67,10.6205]
[1731709707381,8.82999726,218.75,218.67,19.45049726]
[1731709708076,4.1144,218.74,218.67,10.6205]
[1731709708788,4.1144,218.74,218.67,6.0476]
[1731709708996,8.82999726,218.73,218.67,6.0476]
[1731709710181,12.94459726,218.73,218.67,6.0476]
[1731709711581,8.82999726,218.71,218.67,6.0476]
[1731709711782,12.94459726,218.73,218.67,6.0476]
[1731709717901,8.82999726,218.72,218.67,6.0476]
[1731709719280,12.94499726,218.72,218.67,6.0476]
[1731709720596,14.20550488,218.76,218.64,16.6529]
[1731709720597,8.82999726,218.68,218.64,16.6529]
[1731709721097,8.82999726,218.66,218.64,16.6529]
[1731709721487,8.82999726,218.66,218.59,16.232]
[1731709721693,8.82999726,218.62,218.59,16.232]
[1731709723207,8.82999726,218.64,218.59,16.232]
[1731709724402,8.82999726,218.65,218.59,16.232]
[1731709725480,12.94609726,218.65,218.59,16.232]
[1731709726487,4.1156,218.68,218.59,41.07359726]
[1731709726700,4.1156,218.68,218.61,8.82999726]
[1731709727699,4.1156,218.68,218.61,13.40419726]
[1731709729284,8.82999726,218.67,218.6,24.5745]
[1731709729487,12.94559726,218.68,218.6,33.40449726]
[1731709729907,12.94559726,218.68,218.6,44.84089726]
[1731709731698,12.94559726,218.68,218.6,36.0109]
[1731709731899,12.94559726,218.68,218.6,44.84089726]
[1731709735509,12.94559726,218.68,218.6,36.0109]
[1731709735714,12.94559726,218.68,218.61,13.40419726]
[1731709738700,8.82999726,218.69,218.62,8.82999726]
[1731709739109,12.94519726,218.7,218.62,8.82999726]
[1731709740608,12.94519726,218.7,218.63,8.82999726]
[1731709741908,4.115,218.71,218.65,8.82999726]
[1731709742221,4.115,218.71,218.66,15.4735]
[1731709743924,12.94499726,218.71,218.66,15.4735]
[1731709744304,4.115,218.71,218.66,15.4735]
[1731709745808,8.82999726,218.73,218.66,24.30349726]
[1731709746028,12.94479726,218.73,218.66,28.87669726]
[1731709747301,12.94479726,218.73,218.66,24.30349726]
[1731709747732,4.1148,218.73,218.68,8.82999726]
[1731709748730,4.1148,218.73,218.69,8.82999726]
[1731709750632,11.17677886,218.73,218.67,4.5729]
[1731709750806,11.17677886,218.73,218.69,8.82999726]
[1731709751306,4.1148,218.73,218.69,8.82999726]
[1731709751510,4.1144,218.74,218.69,8.82999726]
[1731709751727,4.1144,218.74,218.67,4.5729]
[1731709752023,4.1144,218.74,218.69,8.82999726]
[1731709752406,11.17637886,218.74,218.69,8.82999726]
[1731709752729,7.06197886,218.74,218.7,8.82999726]
[1731709752931,11.17627886,218.75,218.7,8.82999726]
[1731709753119,11.17627886,218.75,218.67,16.0057]
[1731709753430,11.17627886,218.75,218.7,8.82999726]
[1731709756319,7.06197886,218.76,218.74,8.82999726]
[1731709756516,7.06197886,218.78,218.75,8.82999726]
[1731709756827,7.06197886,218.78,218.73,8.82999726]
[1731709757508,7.06197886,218.79,218.73,8.82999726]
[1731709757911,4.1137,218.78,218.73,8.82999726]
[1731709761141,4.1137,218.78,218.74,8.82999726]
[1731709764228,11.17537886,218.8,218.74,8.82999726]
[1731709764556,8.82999726,218.79,218.72,24.572]
[1731709764724,8.82999726,218.79,218.72,33.40199726]
[1731709764925,8.82999726,218.79,218.71,15.2697]
[1731709765250,8.82999726,218.78,218.72,20.0]
[1731709765539,11.17537886,218.8,218.72,20.0]
[1731709765747,8.82999726,218.78,218.72,20.0]
[1731709765935,4.1137,218.78,218.72,20.0]
[1731709766335,4.1137,218.78,218.71,24.09969726]
[1731709766336,12.94369726,218.78,218.71,24.09969726]
[1731709766529,8.82999726,218.76,218.68,8.82999726]
[1731709767741,4.1142,218.75,218.68,8.82999726]
[1731709767937,4.1142,218.75,218.69,8.82999726]
[1731709768143,4.1142,218.75,218.67,4.573]
[1731709768347,4.1142,218.75,218.69,8.82999726]
[1731709769427,4.1142,218.75,218.7,8.82999726]
[1731709770950,4.1139,218.77,218.7,8.82999726]
[1731709774749,7.06197886,218.79,218.75,8.82999726]
[1731709774931,7.06197886,218.8,218.74,15.5324]
[1731709775129,7.06197886,218.8,218.72,8.82999726]
[1731709776146,11.17527886,218.8,218.72,8.82999726]
[1731709776334,8.82999726,218.79,218.72,8.82999726]
[1731709777332,15.89197612,218.79,218.72,8.82999726]
[1731709777838,15.89197612,218.79,218.7,13.40239726]
[1731709778242,4.1137,218.78,218.7,13.40239726]
[1731709779436,11.17567886,218.78,218.7,13.40239726]
[1731709779753,8.82999726,218.77,218.69,11.4317]
[1731709779940,15.89197612,218.77,218.69,11.4317]
[1731709781058,8.82999726,218.77,218.7,8.82999726]
[1731709781732,4.114,218.76,218.7,8.82999726]
[1731709783643,4.114,218.76,218.69,11.4317]
[1731709783954,8.82999726,218.75,218.68,15.5324]
[1731709785164,4.1144,218.74,218.69,8.82999726]
[1731709785451,7.06197886,218.76,218.69,8.82999726]
[1731709785452,11.17607886,218.76,218.69,8.82999726]
[1731709785656,4.1141,218.76,218.69,8.82999726]
[1731709785956,11.17607886,218.76,218.69,8.82999726]
[1731709788652,11.17627886,218.75,218.69,8.82999726]
[1731709788860,4.1143,218.75,218.69,8.82999726]
[1731709789453,11.17627886,218.75,218.69,8.82999726]
[1731709789843,4.1143,218.75,218.69,8.82999726]
[1731709791051,7.06197886,218.76,218.71,8.82999726]
[1731709792733,7.06197886,218.76,218.73,8.82999726]
[1731709792932,7.06197886,218.77,218.73,8.82999726]
[1731709797246,11.17567886,218.78,218.73,6.32999726]
[1731709803070,11.17567886,218.78,218.72,8.82999726]
[1731709803948,11.17567886,218.78,218.72,13.40199726]
[1731709805462,7.06197886,218.78,218.72,13.40199726]
[1731709805768,7.06197886,218.8,218.77,8.82999726]
[1731709806065,7.06197886,218.82,218.79,8.82999726]
[1731709806271,7.06197886,218.83,218.79,8.82999726]
[1731709806565,7.06197886,218.84,218.77,20.0]
[1731709806871,7.06197886,218.84,218.8,8.82999726]
[1731709807165,7.06197886,218.85,218.8,8.82999726]
[1731709807468,7.06197886,218.83,218.8,8.82999726]
[1731709808157,7.06197886,218.84,218.8,8.82999726]
[1731709809353,7.06197886,218.85,218.8,8.82999726]
[1731709809554,7.06197886,218.84,218.8,13.40029726]
[1731709809855,7.06197886,218.85,218.8,13.40029726]
[1731709810253,7.06197886,218.85,218.8,8.82999726]
[1731709811449,11.17417886,218.86,218.8,8.82999726]
[1731709812764,11.17417886,218.86,218.82,8.82999726]
[1731709812967,11.17417886,218.86,218.79,4.5705]
[1731709813152,11.17417886,218.86,218.8,8.82999726]
[1731709814565,4.1122,218.86,218.8,8.82999726]
[1731709817953,4.1122,218.86,218.79,4.5705]
[1731709818158,4.1122,218.86,218.8,8.82999726]
[1731709819570,12.94219726,218.86,218.79,8.82999726]
[1731709820187,12.94219726,218.86,218.78,10.8827]
[1731709820364,12.94219726,218.86,218.79,8.82999726]
[1731709823783,12.94219726,218.86,218.78,6.312]
[1731709824081,12.94219726,218.86,218.79,8.82999726]
[1731709824271,12.94219726,218.86,218.78,6.312]
[1731709824470,8.82999726,218.83,218.77,20.0]
[1731709825159,8.82999726,218.84,218.77,28.82999726]
[1731709825682,4.1127,218.83,218.77,28.82999726]
[1731709826582,12.94269726,218.83,218.77,20.0]
[1731709826967,8.82999726,218.82,218.76,15.418]
[1731709828173,4.1131,218.81,218.76,15.418]
[1731709828571,4.1131,218.81,218.76,24.24799726]
[1731709830084,4.1131,218.81,218.76,15.418]
[1731709830288,4.1131,218.81,218.76,24.24799726]
[1731709830583,4.1127,218.83,218.76,24.24799726]
[1731709835572,4.1124,218.85,218.82,8.82999726]
[1731709835773,4.1124,218.85,218.8,8.82999726]
[1731709836805,11.17437886,218.85,218.8,8.82999726]
[1731709837092,4.1124,218.85,218.8,8.82999726]
[1731709839586,1.8624,218.85,218.8,8.82999726]
[1731709839796,22.95395498,218.88,218.8,8.82999726]
[1731709839797,7.06197886,218.87,218.8,8.82999726]
[1731709841087,4.1124,218.85,218.8,8.82999726]
[1731709843890,4.1124,218.85,218.82,8.82999726]
[1731709848089,4.1124,218.85,218.8,8.82999726]
[1731709849705,11.17437886,218.85,218.8,8.82999726]
[1731709850504,11.17437886,218.85,218.79,8.82999726]
[1731709851486,7.06197886,218.84,218.79,8.82999726]
[1731709851687,4.1124,218.85,218.79,8.82999726]
[1731709851688,11.17437886,218.85,218.79,8.82999726]
[1731709852686,7.06197886,218.84,218.79,8.82999726]
[1731709853090,11.17437886,218.85,218.79,8.82999726]
[1731709853422,7.06197886,218.84,218.79,8.82999726]
[1731709853597,7.06197886,218.84,218.8,8.82999726]
[1731709854406,7.06197886,218.84,218.79,8.82999726]
[1731709855309,11.17457886,218.84,218.79,8.82999726]
[1731709855687,11.17457886,218.84,218.8,8.82999726]
[1731709856285,7.06197886,218.83,218.8,8.82999726]
[1731709858410,7.06197886,218.83,218.79,8.82999726]
[1731709858706,7.06197886,218.82,218.8,28.82999726]
[1731709858917,7.06197886,218.83,218.81,28.82999726]
[1731709859205,7.06197886,218.83,218.8,8.82999726]
[1731709860587,6.98612586,218.83,218.8,8.82999726]
[1731709862220,6.98612586,218.83,218.81,8.82999726]
[1731709862804,6.98612586,218.83,218.82,8.82999726]
[1731709863714,6.98612586,218.83,218.82,25.17839726]
[1731709863904,42.37187317,218.87,218.83,4.5697]
[1731709864105,14.12395772,218.87,218.85,8.82999726]
[1731709864794,14.12395772,218.88,218.86,8.82999726]
[1731709865401,14.12395772,218.88,218.87,8.82999726]
[1731709865606,14.12395772,218.88,218.86,8.82999726]
[1731709868208,28.24791545,218.89,218.86,8.82999726]
[1731709868209,14.12395772,218.89,218.86,8.82999726]
[1731709868530,14.12395772,218.89,218.87,8.82999726]
[1731709868705,42.37187317,218.9,218.87,8.82999726]
[1731709869016,14.12395772,218.9,218.87,8.82999726]
[1731709869223,14.12395772,218.9,218.89,94.34972492]
[1731709869401,0.4295309,218.91,218.9,44.12153862]
[1731709869716,126.92715853,218.97,218.95,117.42812683]
[1731709869927,42.37187318,219.08,218.97,0.12549]
[1731709870118,129.99643267,219.07,219.05,8.82999726]
[1731709870303,4.1074,219.12,219.06,8.82999726]
[1731709870630,4.1074,219.12,219.04,4.5652]
[1731709870631,55.2598256,219.13,219.09,8.82999726]
[1731709870806,0.4295309,219.13,219.09,8.82999726]
[1731709871001,0.4295309,219.13,219.1,8.82999726]
[1731709871207,0.4295309,219.13,219.11,8.82999726]
[1731709872235,0.4295309,219.13,219.12,88.0523603]
[1731709872532,0.4295309,219.13,219.12,113.534794]
[1731709872735,0.4295309,219.13,219.12,113.62846862]
[1731709874715,0.4295309,219.13,219.12,45.70159832]
[1731709874917,0.4295309,219.13,219.12,54.53159558]
[1731709875413,0.4295309,219.13,219.12,20.0]
[1731709875611,0.4295309,219.13,219.11,8.82999726]
[1731709875829,0.4295309,219.13,219.12,8.82999726]
[1731709877922,0.4295309,219.13,219.12,28.82999726]
[1731709878135,0.4295309,219.13,219.12,33.39369726]
[1731709878310,0.4295309,219.13,219.08,11.4113]
[1731709878507,0.4295309,219.13,219.12,28.82999726]
[1731709879226,0.05017956,219.13,219.12,28.82999726]
[1731709879813,0.00589004,219.13,219.12,28.82999726]
[1731709880013,4.1061,219.19,219.12,28.82999726]
[1731709880213,4.1061,219.19,219.13,8.82999726]
[1731709880731,23.776884,219.18,219.13,8.82999726]
[1731709880914,23.776884,219.18,219.16,41.98598858]
[1731709881116,32.60688126,219.18,219.16,41.98598858]
[1731709881412,23.776884,219.18,219.17,41.98598858]
[1731709882416,23.776884,219.18,219.16,55.98131811]
[1731709882850,23.776884,219.18,219.17,55.98131811]
[1731709883465,23.776884,219.18,219.16,41.86482382]
[1731709884220,23.776884,219.18,219.17,41.86482382]
[1731709884924,23.776884,219.18,219.15,55.98131811]
[1731709885415,23.776884,219.18,219.17,55.98131811]
[1731709886035,0.09367462,219.24,219.13,41.77926246]
[1731709886233,0.09367462,219.24,219.12,103.8314286]
[1731709886234,8.82999726,219.19,219.14,41.77926246]
[1731709886514,8.82999726,219.19,219.12,112.66142586]
[1731709887237,4.106,219.19,219.12,33.39349726]
[1731709887456,12.93599726,219.19,219.12,33.39349726]
[1731709888244,23.776884,219.18,219.12,33.39349726]
[1731709889025,23.776884,219.18,219.13,8.82999726]
[1731709889229,23.776884,219.2,219.14,8.82999726]
[1731709889439,32.60688126,219.21,219.14,8.82999726]
[1731709890334,32.60688126,219.21,219.14,13.39309726]
[1731709890640,23.776884,219.21,219.14,13.39309726]
[1731709890822,23.776884,219.21,219.16,8.82999726]
[1731709891646,4.1055,219.22,219.14,15.9713]
[1731709891647,23.87055862,219.24,219.14,15.9713]
[1731709891818,30.0,219.25,219.17,20.0]
[1731709892019,30.0,219.25,219.2,8.82999726]
[1731709892342,30.0,219.25,219.2,13.39189726]
[1731709893046,30.0,219.25,219.24,8.82999726]
[1731709893347,30.0,219.25,219.22,8.82999726]
[1731709893849,30.0,219.25,219.23,8.82999726]
[1731709894139,30.0,219.25,219.24,8.82999726]
[1731709894343,30.0,219.25,219.24,33.39119726]
[1731709894541,30.0,219.25,219.24,20.0]
[1731709895041,30.0,219.25,219.24,28.82999726]
[1731709896133,8.17982112,219.25,219.24,28.82999726]
[1731709900558,8.17982112,219.25,219.24,20.0]
[1731709900739,8.17982112,219.25,219.24,28.82999726]
[1731709900928,8.17982112,219.25,219.23,4.5613]
[1731709901250,8.17982112,219.25,219.23,24.5613]
[1731709903147,8.17982112,219.25,219.23,35.9648]
[1731709903649,8.17982112,219.25,219.24,8.82999726]
[1731709904551,8.17982112,219.25,219.23,35.9648]
[1731709904740,8.17982112,219.25,219.23,44.79479726]
[1731709907257,0.4295309,219.34,219.26,20.0]
[1731709907460,0.4295309,219.34,219.3,8.82999726]
[1731709907633,0.4295309,219.34,219.26,20.0]
[1731709907944,0.4295309,219.34,219.3,8.82999726]
[1731709908146,0.4295309,219.34,219.3,4.5598]
[1731709909632,4.5328309,219.34,219.28,20.0]
[1731709909836,4.5328309,219.34,219.24,20.23289726]
[1731709909837,8.95548726,219.33,219.24,20.23289726]
[1731709910040,8.95548726,219.33,219.24,24.79409726]